[Event "Early-Titled-Tuesday-Blitz-June-18-2024"]
[Site "Chess.com"]
[Date "2024.06.18"]
[Round "2"]
[White "CristianS27"]
[Black "jamengrand"]
[Result "0-1"]
[WhiteElo "2492"]
[BlackElo "2294"]
[TimeControl "180+1"]
[EndTime "8:19:23 PDT"]
[Termination "jamengrand won on time"]

1. e4 {[%clk 0:03:00.9]} 1... e5 {[%clk 0:02:59.4]} 2. Nf3 {[%clk 0:02:55.9]}
2... Nc6 {[%clk 0:02:59.6]} 3. Bc4 {[%clk 0:02:56]} 3... Nf6 {[%clk 0:02:59.4]}
4. d4 {[%clk 0:02:56.3]} 4... exd4 {[%clk 0:02:59.4]} 5. Ng5 {[%clk 0:02:56.5]}
5... d5 {[%clk 0:02:58.6]} 6. exd5 {[%clk 0:02:57.4]} 6... Qe7+ {[%clk 0:02:59]}
7. Kf1 {[%clk 0:02:57.4]} 7... Ne5 {[%clk 0:02:59.4]} 8. Qxd4 {[%clk 0:02:57.1]}
8... Nxc4 {[%clk 0:02:59.7]} 9. Qxc4 {[%clk 0:02:58]} 9... Qc5 {[%clk
0:02:59.6]} 10. Qe2+ {[%clk 0:02:57.6]} 10... Be7 {[%clk 0:02:58.1]} 11. Be3
{[%clk 0:02:56.5]} 11... Qxd5 {[%clk 0:02:38.6]} 12. Nc3 {[%clk 0:02:55.4]}
12... Qc6 {[%clk 0:02:38.5]} 13. Re1 {[%clk 0:02:50.5]} 13... O-O {[%clk
0:02:24.3]} 14. h3 {[%clk 0:02:40.5]} 14... h6 {[%clk 0:02:20.1]} 15. Nf3 {[%clk
0:02:38.7]} 15... Bb4 {[%clk 0:02:16.7]} 16. Nd4 {[%clk 0:02:29.9]} 16... Qd7
{[%clk 0:02:05]} 17. Qf3 {[%clk 0:02:24.1]} 17... b6 {[%clk 0:01:58.8]} 18. Kg1
{[%clk 0:02:14.5]} 18... Ba6 {[%clk 0:01:54]} 19. Nf5 {[%clk 0:02:06.1]} 19...
Bxc3 {[%clk 0:01:48.8]} 20. bxc3 {[%clk 0:02:05.2]} 20... Kh7 {[%clk 0:01:32.6]}
21. Nxh6 {[%clk 0:01:51.3]} 21... Rae8 {[%clk 0:01:14.1]} 22. Qf5+ {[%clk
0:01:46.3]} 22... Kh8 {[%clk 0:01:12.2]} 23. Kh2 {[%clk 0:01:21.5]} 23... Rxe3
{[%clk 0:01:02.9]} 24. fxe3 {[%clk 0:00:27.7]} 24... Qd6+ {[%clk 0:01:01.4]} 25.
Qf4 {[%clk 0:00:28.3]} 25... Qxf4+ {[%clk 0:00:46.3]} 26. exf4 {[%clk
0:00:29.2]} 26... gxh6 {[%clk 0:00:46.9]} 27. Re7 {[%clk 0:00:29.7]} 27... Nd5
{[%clk 0:00:40.6]} 28. Rd7 {[%clk 0:00:29.8]} 28... Nxf4 {[%clk 0:00:33.6]} 29.
Rxc7 {[%clk 0:00:27.6]} 29... Kg7 {[%clk 0:00:30.5]} 30. Rxa7 {[%clk 0:00:25.5]}
30... Bc8 {[%clk 0:00:29.8]} 31. Rf1 {[%clk 0:00:25]} 31... Nd5 {[%clk
0:00:25.7]} 32. c4 {[%clk 0:00:22.5]} 32... Nf6 {[%clk 0:00:25.3]} 33. Rf3
{[%clk 0:00:20.1]} 33... Be6 {[%clk 0:00:24.8]} 34. Rb3 {[%clk 0:00:19.1]} 34...
Rc8 {[%clk 0:00:24.5]} 35. Rxb6 {[%clk 0:00:18.7]} 35... Kg6 {[%clk 0:00:24.1]}
36. Rb4 {[%clk 0:00:14.8]} 36... h5 {[%clk 0:00:21.9]} 37. a4 {[%clk 0:00:14.5]}
37... h4 {[%clk 0:00:21.4]} 38. a5 {[%clk 0:00:14.3]} 38... Rc5 {[%clk
0:00:19.1]} 39. a6 {[%clk 0:00:12.3]} 39... Ra5 {[%clk 0:00:18.7]} 40. Ra8
{[%clk 0:00:12.6]} 40... Nh5 {[%clk 0:00:16.2]} 41. c5 {[%clk 0:00:10.7]} 41...
Ng3 {[%clk 0:00:16.2]} 42. Rxh4 {[%clk 0:00:09.8]} 42... Nf5 {[%clk 0:00:14.5]}
43. Rg4+ {[%clk 0:00:09.7]} 43... Kf6 {[%clk 0:00:15]} 44. a7 {[%clk 0:00:09.1]}
44... Bd5 {[%clk 0:00:15.3]} 45. Rd8 {[%clk 0:00:05.7]} 45... Bxg2 {[%clk
0:00:13.7]} 46. Kxg2 {[%clk 0:00:04.6]} 46... Rxa7 {[%clk 0:00:11.9]} 47. Rf4
{[%clk 0:00:02.7]} 47... Ke5 {[%clk 0:00:11.5]} 48. Rxf5+ {[%clk 0:00:02.5]}
48... Kxf5 {[%clk 0:00:11.8]} 49. Rc8 {[%clk 0:00:03.3]} 49... Ra2 {[%clk
0:00:11.4]} 50. c6 {[%clk 0:00:03.4]} 50... Rxc2+ {[%clk 0:00:11.8]} 51. Kf3
{[%clk 0:00:04.3]} 51... Rc3+ {[%clk 0:00:11.7]} 52. Kg2 {[%clk 0:00:04.9]}
52... Kf4 {[%clk 0:00:10.8]} 53. h4 {[%clk 0:00:04.9]} 53... f5 {[%clk
0:00:09.1]} 54. c7 {[%clk 0:00:05.1]} 54... Rc2+ {[%clk 0:00:08]} 55. Kg1 {[%clk
0:00:05.6]} 55... Kf3 {[%clk 0:00:07.6]} 56. h5 {[%clk 0:00:05.7]} 56... Rc1+
{[%clk 0:00:06.7]} 57. Kh2 {[%clk 0:00:06.1]} 57... f4 {[%clk 0:00:07]} 58. h6
{[%clk 0:00:05]} 58... Rc6 {[%clk 0:00:06.4]} 59. h7 {[%clk 0:00:02]} 59... Rh6+
{[%clk 0:00:06.6]} 60. Kg1 {[%clk 0:00:02.3]} 60... Rxh7 {[%clk 0:00:07.5]} 0-1

[Event "Early-Titled-Tuesday-Blitz-June-18-2024"]
[Site "Chess.com"]
[Date "2024.06.18"]
[Round "2"]
[White "Karina_Ivanova"]
[Black "Kotofeyca"]
[Result "1/2-1/2"]
[WhiteElo "2270"]
[BlackElo "2497"]
[TimeControl "180+1"]
[EndTime "8:19:25 PDT"]
[Termination "Game drawn by repetition"]

1. c4 {[%clk 0:02:59.4]} 1... c6 {[%clk 0:02:59.9]} 2. Nc3 {[%clk 0:02:55.5]}
2... d5 {[%clk 0:03:00.8]} 3. d4 {[%clk 0:02:54.7]} 3... Nf6 {[%clk 0:03:00.3]}
4. Nf3 {[%clk 0:02:52.7]} 4... dxc4 {[%clk 0:03:00.2]} 5. a4 {[%clk 0:02:51.7]}
5... Bg4 {[%clk 0:03:00.3]} 6. e3 {[%clk 0:02:50.1]} 6... e5 {[%clk 0:03:00]} 7.
dxe5 {[%clk 0:02:46.3]} 7... Qxd1+ {[%clk 0:03:00.9]} 8. Nxd1 {[%clk 0:02:45.4]}
8... Nfd7 {[%clk 0:03:01.2]} 9. Bxc4 {[%clk 0:02:42.8]} 9... Bxf3 {[%clk
0:02:59.5]} 10. gxf3 {[%clk 0:02:42.5]} 10... Bb4+ {[%clk 0:02:57.4]} 11. Nc3
{[%clk 0:02:38.2]} 11... Nxe5 {[%clk 0:02:57.1]} 12. Be2 {[%clk 0:02:36.8]}
12... a5 {[%clk 0:02:57.6]} 13. f4 {[%clk 0:02:31.9]} 13... Ned7 {[%clk
0:02:57.7]} 14. O-O {[%clk 0:02:23]} 14... Na6 {[%clk 0:02:56.2]} 15. Rd1 {[%clk
0:02:12.9]} 15... Nac5 {[%clk 0:02:46.6]} 16. Bd2 {[%clk 0:02:04.2]} 16... Nb3
{[%clk 0:02:39.5]} 17. Rab1 {[%clk 0:01:58.9]} 17... Nxd2 {[%clk 0:02:33.3]} 18.
Rxd2 {[%clk 0:01:58]} 18... Nc5 {[%clk 0:02:34.2]} 19. Bd1 {[%clk 0:01:53.7]}
19... Ke7 {[%clk 0:02:29.1]} 20. Bc2 {[%clk 0:01:52]} 20... Rhd8 {[%clk
0:02:13.8]} 21. Rbd1 {[%clk 0:01:50.7]} 21... h6 {[%clk 0:02:03]} 22. Kf1 {[%clk
0:01:44.4]} 22... Rxd2 {[%clk 0:01:41.6]} 23. Rxd2 {[%clk 0:01:44]} 23... b5
{[%clk 0:01:41.2]} 24. axb5 {[%clk 0:01:35.5]} 24... Bxc3 {[%clk 0:01:40.8]} 25.
bxc3 {[%clk 0:01:34.6]} 25... cxb5 {[%clk 0:01:41.3]} 26. Rd5 {[%clk 0:01:16.8]}
26... Rc8 {[%clk 0:01:40.6]} 27. Ke2 {[%clk 0:01:15.5]} 27... a4 {[%clk
0:01:35.8]} 28. Kd2 {[%clk 0:01:15.1]} 28... Rd8 {[%clk 0:00:35.1]} 29. Rxd8
{[%clk 0:01:07.3]} 29... Kxd8 {[%clk 0:00:36]} 30. Kc1 {[%clk 0:01:07.4]} 30...
Kc7 {[%clk 0:00:34.3]} 31. Kb2 {[%clk 0:01:07.2]} 31... Kc6 {[%clk 0:00:29.4]}
32. Ka3 {[%clk 0:01:06.7]} 32... Na6 {[%clk 0:00:29.2]} 33. c4 {[%clk
0:00:58.1]} 33... bxc4 {[%clk 0:00:25.6]} 34. Kxa4 {[%clk 0:00:56.4]} 34... Kc5
{[%clk 0:00:26.2]} 35. Ka3 {[%clk 0:00:48.3]} 35... Nb4 {[%clk 0:00:23]} 36. Be4
{[%clk 0:00:42.1]} 36... Nd5 {[%clk 0:00:13.5]} 37. Kb2 {[%clk 0:00:38.2]} 37...
Nf6 {[%clk 0:00:13.5]} 38. Bf5 {[%clk 0:00:32.7]} 38... Kb4 {[%clk 0:00:13.8]}
39. Kc2 {[%clk 0:00:31.8]} 39... Nd5 {[%clk 0:00:13.4]} 40. Be4 {[%clk 0:00:29]}
40... Nc3 {[%clk 0:00:13.3]} 41. Bf3 {[%clk 0:00:27.6]} 41... f6 {[%clk
0:00:13.2]} 42. Bg4 {[%clk 0:00:24.8]} 42... Nb5 {[%clk 0:00:14.1]} 43. Bf3
{[%clk 0:00:24.3]} 43... Na3+ {[%clk 0:00:14.2]} 44. Kc1 {[%clk 0:00:23.3]}
44... Kc3 {[%clk 0:00:14.8]} 45. Be4 {[%clk 0:00:22.2]} 45... Nb5 {[%clk
0:00:14.1]} 46. Bf5 {[%clk 0:00:21.1]} 46... Nd6 {[%clk 0:00:14.3]} 47. Bc2
{[%clk 0:00:20]} 47... Nb5 {[%clk 0:00:12.8]} 48. Be4 {[%clk 0:00:19.5]} 48...
Na3 {[%clk 0:00:12.8]} 49. Bf5 {[%clk 0:00:17.3]} 49... Kb4 {[%clk 0:00:11.5]}
50. Be4 {[%clk 0:00:15.4]} 50... Nb5 {[%clk 0:00:10.9]} 51. Kb2 {[%clk
0:00:13.6]} 51... Nc3 {[%clk 0:00:11.8]} 52. Bf3 {[%clk 0:00:12.7]} 52... Nb5
{[%clk 0:00:10.8]} 53. Be4 {[%clk 0:00:12.3]} 53... c3+ {[%clk 0:00:10.9]} 54.
Kc2 {[%clk 0:00:11.7]} 54... Na3+ {[%clk 0:00:11.1]} 55. Kc1 {[%clk 0:00:11.8]}
55... Kb3 {[%clk 0:00:11.5]} 56. Bd5+ {[%clk 0:00:11.6]} 56... Kb4 {[%clk
0:00:11.5]} 57. Be4 {[%clk 0:00:11.1]} 57... Kc5 {[%clk 0:00:12.1]} 58. Bf5
{[%clk 0:00:10.1]} 58... Kc4 {[%clk 0:00:12.4]} 59. Be4 {[%clk 0:00:10]} 59...
Nb5 {[%clk 0:00:11.7]} 60. Kc2 {[%clk 0:00:08.7]} 60... Na3+ {[%clk 0:00:11.6]}
61. Kc1 {[%clk 0:00:08.7]} 61... Kb3 {[%clk 0:00:10.7]} 62. Bd5+ {[%clk
0:00:08.7]} 62... Kb4 {[%clk 0:00:10.3]} 63. Be4 {[%clk 0:00:08.3]} 1/2-1/2

[Event "Early-Titled-Tuesday-Blitz-June-18-2024"]
[Site "Chess.com"]
[Date "2024.06.18"]
[Round "2"]
[White "TimurDushatov"]
[Black "arctic_t00"]
[Result "0-1"]
[WhiteElo "2368"]
[BlackElo "2732"]
[TimeControl "180+1"]
[EndTime "8:19:27 PDT"]
[Termination "arctic_t00 won by resignation"]

1. e4 {[%clk 0:03:00.9]} 1... c6 {[%clk 0:03:00.2]} 2. d4 {[%clk 0:02:57.5]}
2... d5 {[%clk 0:03:00.6]} 3. exd5 {[%clk 0:02:57.1]} 3... cxd5 {[%clk
0:03:00.9]} 4. Bd3 {[%clk 0:02:57.1]} 4... Nc6 {[%clk 0:03:01.2]} 5. c3 {[%clk
0:02:57.4]} 5... Nf6 {[%clk 0:03:01.2]} 6. h3 {[%clk 0:02:57.1]} 6... g6 {[%clk
0:03:01.4]} 7. Nf3 {[%clk 0:02:57.4]} 7... Bf5 {[%clk 0:03:01.7]} 8. Be2 {[%clk
0:02:57.8]} 8... Bg7 {[%clk 0:02:59.8]} 9. Bf4 {[%clk 0:02:57.5]} 9... O-O
{[%clk 0:02:59.5]} 10. O-O {[%clk 0:02:57.2]} 10... Ne4 {[%clk 0:02:56.1]} 11.
Nbd2 {[%clk 0:02:54.8]} 11... Nd6 {[%clk 0:02:55.8]} 12. Re1 {[%clk 0:02:51.4]}
12... Re8 {[%clk 0:02:37.1]} 13. Nb3 {[%clk 0:02:45.3]} 13... Nc4 {[%clk
0:02:20.8]} 14. Bxc4 {[%clk 0:02:09.2]} 14... dxc4 {[%clk 0:02:20.8]} 15. Nc5
{[%clk 0:02:08.9]} 15... b6 {[%clk 0:02:16.7]} 16. Ne4 {[%clk 0:02:04.6]} 16...
Qd5 {[%clk 0:02:09.9]} 17. Ng3 {[%clk 0:02:01.8]} 17... Bd3 {[%clk 0:02:03.7]}
18. Qd2 {[%clk 0:01:53]} 18... Rad8 {[%clk 0:02:02.7]} 19. Ne5 {[%clk
0:01:50.7]} 19... Nxe5 {[%clk 0:02:02.7]} 20. Bxe5 {[%clk 0:01:50.4]} 20... f6
{[%clk 0:01:59.9]} 21. Bf4 {[%clk 0:01:45]} 21... e5 {[%clk 0:01:43.7]} 22. dxe5
{[%clk 0:01:43.1]} 22... fxe5 {[%clk 0:01:44.6]} 23. Bh6 {[%clk 0:01:42.1]}
23... Bh8 {[%clk 0:01:27.3]} 24. h4 {[%clk 0:01:26.3]} 24... e4 {[%clk
0:01:25.3]} 25. h5 {[%clk 0:01:21.7]} 25... Re6 {[%clk 0:01:20.7]} 26. Bg5
{[%clk 0:01:14]} 26... Rf8 {[%clk 0:01:16.1]} 27. Ne2 {[%clk 0:00:45.6]} 27...
Qf5 {[%clk 0:00:43.8]} 28. Ng3 {[%clk 0:00:30.4]} 28... Qg4 {[%clk 0:00:41.4]}
29. Bh6 {[%clk 0:00:22]} 29... Rfe8 {[%clk 0:00:38.1]} 30. Qg5 {[%clk 0:00:13]}
30... Qxg5 {[%clk 0:00:36.3]} 31. Bxg5 {[%clk 0:00:13.9]} 31... b5 {[%clk
0:00:30.3]} 32. hxg6 {[%clk 0:00:12.4]} 32... Rxg6 {[%clk 0:00:29.5]} 33. Be3
{[%clk 0:00:11.9]} 33... a5 {[%clk 0:00:28.7]} 34. Bc5 {[%clk 0:00:09.1]} 34...
Rc6 {[%clk 0:00:26.8]} 35. Be3 {[%clk 0:00:07.1]} 35... b4 {[%clk 0:00:26.9]}
36. Bd2 {[%clk 0:00:06.2]} 36... Rb6 {[%clk 0:00:24.2]} 37. Be3 {[%clk
0:00:05.7]} 37... Rb5 {[%clk 0:00:23]} 38. a4 {[%clk 0:00:05.2]} 38... Rb7
{[%clk 0:00:23.1]} 39. Bd2 {[%clk 0:00:03.5]} 39... bxc3 {[%clk 0:00:12.6]} 40.
Bxc3 {[%clk 0:00:03.8]} 40... Bxc3 {[%clk 0:00:13.2]} 41. bxc3 {[%clk
0:00:04.4]} 41... Rb3 {[%clk 0:00:14]} 42. Rac1 {[%clk 0:00:03.1]} 42... Ra3
{[%clk 0:00:13.5]} 43. f3 {[%clk 0:00:02.1]} 43... e3 {[%clk 0:00:12.2]} 44. Ne4
{[%clk 0:00:01.7]} 44... Bxe4 {[%clk 0:00:10.3]} 45. fxe4 {[%clk 0:00:02.6]}
45... Rxe4 {[%clk 0:00:10.9]} 46. Kf1 {[%clk 0:00:03.4]} 46... Rxa4 {[%clk
0:00:11.1]} 47. Ke2 {[%clk 0:00:04.3]} 47... Ra2+ {[%clk 0:00:11.5]} 48. Kf3
{[%clk 0:00:05.2]} 48... Re7 {[%clk 0:00:08.9]} 49. Rxe3 {[%clk 0:00:05.3]}
49... Rxe3+ {[%clk 0:00:09.1]} 50. Kxe3 {[%clk 0:00:04.8]} 50... Rxg2 {[%clk
0:00:09.8]} 51. Kd4 {[%clk 0:00:05.4]} 51... Rg4+ {[%clk 0:00:09.7]} 52. Kc5
{[%clk 0:00:05.9]} 52... h5 {[%clk 0:00:09.8]} 53. Kb5 {[%clk 0:00:06.3]} 53...
h4 {[%clk 0:00:10]} 54. Kxa5 {[%clk 0:00:06.8]} 54... Kg7 {[%clk 0:00:10.6]} 55.
Kb5 {[%clk 0:00:06.6]} 55... Kg6 {[%clk 0:00:11.1]} 56. Kc5 {[%clk 0:00:06.9]}
56... Kg5 {[%clk 0:00:11.6]} 57. Kd5 {[%clk 0:00:07.3]} 57... h3 {[%clk
0:00:12]} 58. Rh1 {[%clk 0:00:06.9]} 58... Kh4 {[%clk 0:00:12.3]} 59. Ke5 {[%clk
0:00:07.1]} 59... Kg3 {[%clk 0:00:10.7]} 60. Rg1+ {[%clk 0:00:07.5]} 60... Kf3
{[%clk 0:00:10.4]} 61. Rd1 {[%clk 0:00:07.1]} 61... h2 {[%clk 0:00:09.7]} 62.
Rh1 {[%clk 0:00:07]} 62... Kg2 {[%clk 0:00:09.9]} 0-1

[Event "Early-Titled-Tuesday-Blitz-June-18-2024"]
[Site "Chess.com"]
[Date "2024.06.18"]
[Round "2"]
[White "rockstar0902"]
[Black "MatthewG-p4p"]
[Result "1-0"]
[WhiteElo "2620"]
[BlackElo "2855"]
[TimeControl "180+1"]
[EndTime "8:19:28 PDT"]
[Termination "rockstar0902 won by resignation"]

1. c4 {[%clk 0:03:00.9]} 1... e6 {[%clk 0:02:52.1]} 2. Nc3 {[%clk 0:02:59.7]}
2... d5 {[%clk 0:02:51.9]} 3. d4 {[%clk 0:03:00.1]} 3... c6 {[%clk 0:02:51.8]}
4. e4 {[%clk 0:02:59.5]} 4... dxe4 {[%clk 0:02:51]} 5. Nxe4 {[%clk 0:03:00.3]}
5... Bb4+ {[%clk 0:02:51.6]} 6. Bd2 {[%clk 0:03:00.8]} 6... Qxd4 {[%clk
0:02:51.1]} 7. Bxb4 {[%clk 0:03:01.2]} 7... Qxe4+ {[%clk 0:02:51.4]} 8. Be2
{[%clk 0:02:58.1]} 8... Na6 {[%clk 0:02:51.3]} 9. Ba5 {[%clk 0:02:47.4]} 9... f6
{[%clk 0:02:45.7]} 10. Nf3 {[%clk 0:02:37.1]} 10... b6 {[%clk 0:02:01.8]} 11.
Bc3 {[%clk 0:02:35.2]} 11... Nh6 {[%clk 0:01:49.3]} 12. Nd2 {[%clk 0:02:20]}
12... Qf5 {[%clk 0:01:35.2]} 13. Bf3 {[%clk 0:02:19.1]} 13... Bb7 {[%clk
0:01:32.7]} 14. Ne4 {[%clk 0:02:18.7]} 14... Nf7 {[%clk 0:01:19.1]} 15. Nd6+
{[%clk 0:02:02.2]} 15... Nxd6 {[%clk 0:01:18.9]} 16. Qxd6 {[%clk 0:02:03.1]}
16... Rd8 {[%clk 0:01:14.4]} 17. Qg3 {[%clk 0:01:46.8]} 17... O-O {[%clk
0:01:01.7]} 18. O-O {[%clk 0:01:46.5]} 18... Nc5 {[%clk 0:01:00.3]} 19. Rfe1
{[%clk 0:01:42.9]} 19... e5 {[%clk 0:00:53.3]} 20. b4 {[%clk 0:01:23.3]} 20...
Nd3 {[%clk 0:00:31.4]} 21. Be4 {[%clk 0:01:18.7]} 21... Qf4 {[%clk 0:00:30]} 22.
Bxd3 {[%clk 0:01:04.9]} 22... Qxg3 {[%clk 0:00:27.6]} 23. Bxh7+ {[%clk 0:01:05]}
23... Kxh7 {[%clk 0:00:28.5]} 24. hxg3 {[%clk 0:01:05.5]} 24... Rd3 {[%clk
0:00:29.4]} 25. Rac1 {[%clk 0:01:04.5]} 25... Rfd8 {[%clk 0:00:21.5]} 26. f4
{[%clk 0:00:57]} 26... Rxg3 {[%clk 0:00:19.6]} 27. fxe5 {[%clk 0:00:55.6]} 27...
c5 {[%clk 0:00:20.1]} 28. Rc2 {[%clk 0:00:55.4]} 28... cxb4 {[%clk 0:00:18.4]}
29. Bxb4 {[%clk 0:00:53.7]} 29... fxe5 {[%clk 0:00:18.2]} 30. Rxe5 {[%clk
0:00:53.5]} 30... Rd1+ {[%clk 0:00:17.5]} 31. Kh2 {[%clk 0:00:52.8]} 31... Rg4
{[%clk 0:00:17.5]} 32. Re7 {[%clk 0:00:50.1]} 32... Be4 {[%clk 0:00:16.6]} 33.
Rf2 {[%clk 0:00:46.3]} 33... Rc1 {[%clk 0:00:06.5]} 34. Rxa7 {[%clk 0:00:44.4]}
34... Rxc4 {[%clk 0:00:06.6]} 35. Bf8 {[%clk 0:00:44.1]} 35... Bd5 {[%clk
0:00:06.1]} 36. Rd7 {[%clk 0:00:37]} 36... Be4 {[%clk 0:00:06.4]} 37. Re7 {[%clk
0:00:27.9]} 37... Rc6 {[%clk 0:00:06.7]} 38. Bxg7 {[%clk 0:00:27.1]} 38... Rxg7
{[%clk 0:00:02.6]} 39. Rxe4 {[%clk 0:00:27.1]} 39... Rh6+ {[%clk 0:00:03.5]} 40.
Kg1 {[%clk 0:00:26.7]} 40... Rhg6 {[%clk 0:00:04.2]} 41. Rb2 {[%clk 0:00:26.3]}
41... Rc6 {[%clk 0:00:04.4]} 42. Reb4 {[%clk 0:00:25.9]} 42... Rgg6 {[%clk
0:00:05.3]} 43. g4 {[%clk 0:00:23.7]} 43... Kg7 {[%clk 0:00:05.7]} 44. Kg2
{[%clk 0:00:23.8]} 44... Kf6 {[%clk 0:00:06.2]} 45. Kg3 {[%clk 0:00:24.1]} 45...
Ke7 {[%clk 0:00:06.3]} 46. Kf4 {[%clk 0:00:22.7]} 46... Kd7 {[%clk 0:00:06.9]}
47. Kf5 {[%clk 0:00:22.3]} 47... Rcf6+ {[%clk 0:00:06]} 48. Ke5 {[%clk
0:00:21.9]} 48... Kc7 {[%clk 0:00:06.9]} 49. g5 {[%clk 0:00:19.6]} 49... Rc6
{[%clk 0:00:06.7]} 50. Kf5 {[%clk 0:00:19.3]} 50... Rg8 {[%clk 0:00:07]} 51. Rb5
{[%clk 0:00:18.6]} 51... Rf8+ {[%clk 0:00:07.2]} 52. Kg4 {[%clk 0:00:19.1]}
52... Rg8 {[%clk 0:00:08.1]} 53. R2b4 {[%clk 0:00:18.4]} 53... Kb7 {[%clk
0:00:06.8]} 54. a4 {[%clk 0:00:16]} 54... Ka6 {[%clk 0:00:07.1]} 55. Rf4 {[%clk
0:00:16.1]} 55... Rgg6 {[%clk 0:00:05.4]} 56. Rf8 {[%clk 0:00:15.1]} 56... Rg7
{[%clk 0:00:03.8]} 57. Ra8+ {[%clk 0:00:14.1]} 57... Kb7 {[%clk 0:00:04.1]} 58.
Rf8 {[%clk 0:00:12.8]} 58... Rc4+ {[%clk 0:00:04.4]} 59. Kh5 {[%clk 0:00:12.2]}
59... Rxa4 {[%clk 0:00:03.3]} 60. Rf6 {[%clk 0:00:12.4]} 60... Ra6 {[%clk
0:00:01.7]} 61. g6 {[%clk 0:00:12.6]} 61... Ka7 {[%clk 0:00:01.8]} 62. Rf7+
{[%clk 0:00:12.6]} 62... Rxf7 {[%clk 0:00:01.3]} 63. gxf7 {[%clk 0:00:13.5]}
63... Ra4 {[%clk 0:00:01.8]} 64. f8=Q {[%clk 0:00:13]} 1-0

[Event "Early-Titled-Tuesday-Blitz-June-18-2024"]
[Site "Chess.com"]
[Date "2024.06.18"]
[Round "2"]
[White "EddieUrquhart"]
[Black "KnightDuta"]
[Result "0-1"]
[WhiteElo "2423"]
[BlackElo "2749"]
[TimeControl "180+1"]
[EndTime "8:19:34 PDT"]
[Termination "KnightDuta won on time"]

1. e4 {[%clk 0:03:00.9]} 1... e5 {[%clk 0:02:57.1]} 2. Nf3 {[%clk 0:02:59.8]}
2... Nc6 {[%clk 0:02:57.7]} 3. d4 {[%clk 0:03:00.1]} 3... exd4 {[%clk
0:02:58.1]} 4. Bc4 {[%clk 0:03:00.3]} 4... Nf6 {[%clk 0:02:57.9]} 5. e5 {[%clk
0:03:00.7]} 5... d5 {[%clk 0:02:57.9]} 6. Bb5 {[%clk 0:02:59.7]} 6... Ne4 {[%clk
0:02:58.4]} 7. Nxd4 {[%clk 0:02:58.5]} 7... Bd7 {[%clk 0:02:59.1]} 8. Bxc6
{[%clk 0:02:58.4]} 8... bxc6 {[%clk 0:03:00]} 9. O-O {[%clk 0:02:58.8]} 9... Bc5
{[%clk 0:03:00.1]} 10. f3 {[%clk 0:02:58.5]} 10... Ng5 {[%clk 0:03:00.1]} 11. f4
{[%clk 0:02:59.1]} 11... Ne4 {[%clk 0:02:59.9]} 12. Be3 {[%clk 0:02:59.2]} 12...
Bb6 {[%clk 0:03:00.2]} 13. c3 {[%clk 0:02:59]} 13... c5 {[%clk 0:02:46.2]} 14.
Nb3 {[%clk 0:02:58.5]} 14... Ba4 {[%clk 0:02:30.9]} 15. Qg4 {[%clk 0:02:51.6]}
15... O-O {[%clk 0:02:16.5]} 16. N1d2 {[%clk 0:02:49.9]} 16... Nxd2 {[%clk
0:01:59]} 17. Nxd2 {[%clk 0:02:49.3]} 17... d4 {[%clk 0:01:59.2]} 18. cxd4
{[%clk 0:02:45.3]} 18... cxd4 {[%clk 0:02:00.1]} 19. Bf2 {[%clk 0:02:45]} 19...
Qd5 {[%clk 0:01:54.6]} 20. b3 {[%clk 0:02:32.2]} 20... Bd7 {[%clk 0:01:49]} 21.
Qg3 {[%clk 0:02:29.9]} 21... f6 {[%clk 0:01:30.2]} 22. Nf3 {[%clk 0:02:20.4]}
22... Rae8 {[%clk 0:01:15.9]} 23. Rfe1 {[%clk 0:02:12.1]} 23... f5 {[%clk
0:01:01.2]} 24. Rad1 {[%clk 0:02:06.3]} 24... c5 {[%clk 0:01:01.5]} 25. Nd2
{[%clk 0:01:58.2]} 25... Ba5 {[%clk 0:00:55.4]} 26. Qd3 {[%clk 0:01:26.2]} 26...
Bc6 {[%clk 0:00:52.7]} 27. Qc4 {[%clk 0:01:18.5]} 27... Bb4 {[%clk 0:00:32.8]}
28. Qxd5+ {[%clk 0:01:11.5]} 28... Bxd5 {[%clk 0:00:33.7]} 29. Re2 {[%clk
0:01:03.7]} 29... a5 {[%clk 0:00:33.6]} 30. Nc4 {[%clk 0:01:00.2]} 30... Re6
{[%clk 0:00:27.6]} 31. Nd6 {[%clk 0:00:55]} 31... a4 {[%clk 0:00:22]} 32. Rb1
{[%clk 0:00:50.2]} 32... axb3 {[%clk 0:00:15.8]} 33. axb3 {[%clk 0:00:49.9]}
33... Ra8 {[%clk 0:00:16.5]} 34. Be1 {[%clk 0:00:44.7]} 34... d3 {[%clk
0:00:15.5]} 35. Reb2 {[%clk 0:00:38.1]} 35... Bxe1 {[%clk 0:00:06.1]} 36. Rxe1
{[%clk 0:00:39]} 36... Be4 {[%clk 0:00:02]} 37. Nxe4 {[%clk 0:00:32.2]} 37...
fxe4 {[%clk 0:00:02.9]} 38. Rxe4 {[%clk 0:00:32.6]} 38... Rd8 {[%clk 0:00:03.6]}
39. Rd2 {[%clk 0:00:32.4]} 39... Rb6 {[%clk 0:00:03.9]} 40. e6 {[%clk
0:00:26.8]} 40... Rxb3 {[%clk 0:00:02.6]} 41. e7 {[%clk 0:00:27]} 41... Re8
{[%clk 0:00:03.2]} 42. Kf2 {[%clk 0:00:26.5]} 42... Kf7 {[%clk 0:00:03.5]} 43.
Re5 {[%clk 0:00:25]} 43... c4 {[%clk 0:00:03.6]} 44. Rc5 {[%clk 0:00:24.3]}
44... Rxe7 {[%clk 0:00:02.6]} 45. Rxc4 {[%clk 0:00:23.4]} 45... Rd7 {[%clk
0:00:03.3]} 46. Ke3 {[%clk 0:00:22.8]} 46... Ke6 {[%clk 0:00:03.8]} 47. Re4+
{[%clk 0:00:21.8]} 47... Kf5 {[%clk 0:00:04]} 48. h3 {[%clk 0:00:18.9]} 48...
Rb1 {[%clk 0:00:02.7]} 49. g4+ {[%clk 0:00:19]} 49... Kf6 {[%clk 0:00:03.1]} 50.
Rc4 {[%clk 0:00:14.4]} 50... Re1+ {[%clk 0:00:03.4]} 51. Kf3 {[%clk 0:00:14.9]}
51... Rh1 {[%clk 0:00:03.8]} 52. Kg3 {[%clk 0:00:13.8]} 52... Re1 {[%clk
0:00:03.5]} 53. Rc6+ {[%clk 0:00:12.2]} 53... Kf7 {[%clk 0:00:03.7]} 54. Rc3
{[%clk 0:00:08]} 54... Re3+ {[%clk 0:00:03.7]} 55. Kg2 {[%clk 0:00:08.1]} 55...
Rd4 {[%clk 0:00:03.7]} 56. f5 {[%clk 0:00:07.9]} 56... h6 {[%clk 0:00:03.9]} 57.
Ra3 {[%clk 0:00:06]} 57... Kf6 {[%clk 0:00:04.4]} 58. Ra6+ {[%clk 0:00:01.9]}
58... Kg5 {[%clk 0:00:05]} 59. Rg6+ {[%clk 0:00:01.9]} 59... Kh4 {[%clk
0:00:05.6]} 60. Rxg7 {[%clk 0:00:02.5]} 60... Rg3+ {[%clk 0:00:04.3]} 61. Kf2
{[%clk 0:00:02.8]} 61... Rf4+ {[%clk 0:00:04.7]} 0-1